bitfinex/quotes_SOLUSD_20241121
["timestamp","ask_amount","ask_price","bid_price","bid_amount"]
[1732214187354,160.6,258.69,258.61,20.0]
[1732214187544,160.6,258.69,258.5,11.8920845]
[1732214187545,140.6,258.59,258.5,11.8920845]
[1732214187721,140.6,258.58,258.51,11.6513678]
[1732214187922,140.6,258.58,258.5,11.8920845]
[1732214187923,140.6,258.57,258.5,11.8920845]
[1732214188118,140.6,258.57,258.49,11.6513678]
[1732214188546,140.6,258.57,258.5,0.88422216]
[1732214188746,11.6513678,258.56,258.47,11.6513678]
[1732214189054,11.6513678,258.56,258.43,3.0956]
[1732214189055,11.6513678,258.56,258.45,11.6513678]
[1732214189217,11.6513678,258.5,258.43,3.0956]
[1732214189427,140.6,258.49,258.43,14.7469678]
[1732214189619,140.6,258.49,258.43,11.6513678]
[1732214192131,140.6,258.49,258.44,20.0]
[1732214193339,140.6,258.49,258.45,3.0953]
[1732214193722,140.6,258.48,258.45,3.0953]
[1732214193940,140.6,258.48,258.46,11.6513678]
[1732214194132,140.6,258.48,258.47,20.0]
[1732214194336,140.6,258.4,258.36,3.0964]
[1732214194629,140.6,258.39,258.36,3.0964]
[1732214195133,140.6,258.39,258.32,11.6513678]
[1732214195454,140.6,258.39,258.23,15.5383]
[1732214195455,140.6,258.39,258.36,11.6513678]
[1732214195658,140.6,258.39,258.37,20.0]
[1732214196553,140.6,258.39,258.38,31.6513678]
[1732214197339,140.6,258.39,258.38,34.7475678]
[1732214199860,15.2238,258.51,258.39,20.0]
[1732214200161,160.6,258.5,258.46,20.0]
[1732214200344,160.6,258.49,258.46,20.0]
[1732214200854,160.6,258.49,258.44,20.0]
[1732214201156,160.6,258.49,258.45,3.0953]
[1732214201860,160.6,258.49,258.45,10.8337]
[1732214202155,160.6,258.49,258.48,20.0]
[1732214205739,11.6513678,258.49,258.48,20.0]
[1732214206164,26.8751678,258.51,258.48,20.0]
[1732214206339,26.8751678,258.51,258.49,3.0948]
[1732214206537,26.8751678,258.51,258.44,14.7467678]
[1732214206740,26.8751678,258.51,258.45,20.0]
[1732214207739,26.8751678,258.51,258.44,3.0954]
[1732214207939,15.2238,258.51,258.45,20.0]
[1732214208667,15.2238,258.51,258.45,23.0953]
[1732214208845,11.6513678,258.46,258.28,21.92355417]
[1732214209049,11.6513678,258.44,258.34,11.6513678]
[1732214209737,160.6,258.45,258.36,11.6513678]
[1732214209965,160.6,258.44,258.38,11.6513678]
[1732214210140,160.6,258.44,258.4,11.6513678]
[1732214210337,160.6,258.43,258.42,31.6513678]
[1732214210538,15.2238,258.51,258.44,3.0954]
[1732214210753,160.6,258.5,258.44,3.0954]
[1732214211443,160.6,258.49,258.44,22.4854678]
[1732214211640,160.6,258.49,258.45,20.0]
[1732214212160,160.6,258.49,258.46,11.6513678]
[1732214212374,160.6,258.49,258.45,20.0]
[1732214212543,160.6,258.49,258.46,3.0952]
[1732214213057,160.6,258.49,258.46,14.7465678]
[1732214213270,160.6,258.49,258.47,20.0]
[1732214213564,160.6,258.49,258.48,3.095]
[1732214213776,11.6513678,258.56,258.48,3.095]
[1732214217457,160.6,258.55,258.51,20.0]
[1732214217658,160.6,258.54,258.52,11.6513678]
[1732214217958,158.366,258.56,258.53,20.0]
[1732214218160,158.366,258.57,258.56,31.6513678]
[1732214221275,27.4847678,258.68,258.53,11.6513678]
[1732214221276,158.366,258.56,258.53,11.6513678]
[1732214221475,158.366,258.56,258.42,16.1321]
[1732214221790,158.366,258.55,258.52,11.6513678]
[1732214221952,158.366,258.54,258.5,11.6513678]
[1732214222157,158.366,258.54,258.52,11.6513678]
[1732214222755,158.366,258.54,258.5,11.6513678]
[1732214223668,158.366,258.54,258.52,11.6513678]
[1732214224086,158.366,258.54,258.53,20.0]
[1732214224460,158.366,258.64,258.53,20.0]
[1732214224661,158.366,258.63,258.62,20.0]
[1732214224859,15.8334,258.68,258.62,20.0]
[1732214225159,160.6,258.67,258.62,11.6513678]
[1732214225368,160.6,258.67,258.63,20.0]
[1732214225982,140.6,258.59,258.56,11.6513678]
[1732214226170,140.6,258.58,258.57,20.0]
[1732214226482,140.6,258.58,258.56,11.6513678]
[1732214226982,140.6,258.58,258.57,11.6513678]
[1732214227178,140.6,258.72,258.57,11.6513678]
[1732214227480,18.1785678,258.73,258.56,11.6513678]
[1732214227481,140.6,258.71,258.64,11.6513678]
[1732214227654,140.6,258.7,258.64,11.6513678]
[1732214228175,140.6,258.7,258.65,20.0]
[1732214228363,140.6,258.7,258.67,11.6513678]
[1732214229082,140.6,258.7,258.68,20.0]
[1732214229470,16.0006,258.76,258.7,20.0]
[1732214229781,160.6,258.75,258.7,20.0]
[1732214230173,160.6,258.75,258.68,20.0]
[1732214232681,160.6,258.74,258.7,20.0]
[1732214233185,160.6,258.74,258.66,20.0]
[1732214233364,160.6,258.74,258.68,20.0]
[1732214233875,172.2513678,258.74,258.68,20.0]
[1732214234078,172.2513678,258.74,258.66,20.0]
[1732214235359,10.6318,258.81,258.59,16.2792]
[1732214235360,160.6,258.73,258.67,11.6513678]
[1732214235564,160.6,258.72,258.67,11.6513678]
[1732214235756,160.6,258.72,258.69,11.6513678]
[1732214235963,11.6513678,258.8,258.71,11.6513678]
[1732214236173,11.6513678,258.78,258.69,11.6513678]
[1732214236369,160.6,258.77,258.69,11.6513678]
[1732214236668,11.6513678,258.76,258.68,20.0]
[1732214237477,11.6513678,258.74,258.65,11.6513678]
[1732214238376,11.6513678,258.72,258.63,11.6513678]
[1732214238581,160.6,258.71,258.68,11.6513678]
[1732214238889,172.2513678,258.83,258.72,20.0]
[1732214239083,160.6,258.82,258.75,20.0]
[1732214239923,160.6,258.82,258.77,20.0]
[1732214240089,160.6,258.83,258.78,11.6513678]
[1732214240291,160.6,258.82,258.79,20.0]
[1732214240865,0.1,258.88,258.82,43.776884]
[1732214241192,0.1,258.88,258.74,6.5994]
[1732214241193,160.6,259.06,258.89,43.776884]
[1732214241491,4.0354781,259.1,258.89,43.776884]
[1732214241492,160.6,259.05,258.99,11.6513678]
[1732214241694,160.6,259.04,258.99,20.0]
[1732214241876,11.6513678,259.04,258.99,20.0]
[1732214242075,11.6513678,259.06,258.99,20.0]
[1732214242282,11.6513678,259.01,258.92,20.0]
[1732214242576,11.6513678,258.95,258.92,20.0]
[1732214242783,172.2513678,258.99,258.92,20.0]
[1732214242982,11.6513678,258.95,258.88,20.0]
[1732214243169,11.6513678,258.95,258.86,20.0]
[1732214243373,11.6513678,258.93,258.82,11.6513678]
[1732214243584,160.6,258.92,258.84,11.6513678]
[1732214244281,160.6,258.92,258.72,6.5258]
[1732214244282,11.6513678,258.91,258.82,11.6513678]
[1732214244665,18.59682426,258.91,258.81,18.59682426]
[1732214245583,18.59682426,258.89,258.72,6.5258]
[1732214245788,18.59682426,258.87,258.78,18.59682426]
[1732214245991,160.6,258.86,258.78,18.59682426]
[1732214247383,19.09682426,258.83,258.72,18.59682426]
[1732214247587,18.59682426,258.81,258.7,18.59682426]
[1732214247794,184.376884,258.8,258.7,18.59682426]
[1732214248091,18.59682426,258.71,258.63,18.59682426]
[1732214248392,160.6,258.7,258.67,18.59682426]
[1732214248576,160.6,258.7,258.69,18.59682426]
[1732214248882,160.6,258.7,258.51,0.5]
[1732214249069,160.6,258.69,258.68,18.59682426]
[1732214249266,23.776884,258.77,258.68,18.59682426]
[1732214249487,23.776884,258.77,258.57,18.59682426]
[1732214249488,179.19682426,258.76,258.66,18.59682426]
[1732214249883,183.06142426,258.76,258.66,18.59682426]
[1732214250070,18.59682426,258.72,258.62,18.59682426]
[1732214250273,160.6,258.71,258.62,18.59682426]
[1732214250689,160.6,258.71,258.64,18.59682426]
[1732214251771,160.6,258.71,258.67,18.59682426]
[1732214251966,160.6,258.7,258.68,20.0]
[1732214252182,160.6,258.69,258.68,20.0]
[1732214252565,160.6,258.69,258.6,20.0]
[1732214252770,160.6,258.68,258.62,20.0]
[1732214252980,160.6,258.67,258.63,23.776884]
[1732214253184,160.6,258.66,258.64,20.0]
[1732214253385,160.6,258.66,258.65,38.59682426]
[1732214254494,18.59682426,258.77,258.66,20.0]
[1732214254688,0.5,258.81,258.66,20.0]
[1732214254689,160.6,258.76,258.72,18.59682426]
[1732214254992,160.6,258.75,258.73,20.0]
[1732214255706,160.6,258.75,258.57,18.59682426]
[1732214255707,18.59682426,258.74,258.67,20.0]
[1732214256399,18.59682426,258.74,258.49,0.5]
[1732214256400,18.59682426,258.72,258.61,18.59682426]
[1732214256599,23.776884,258.71,258.61,18.59682426]
[1732214256797,18.59682426,258.64,258.53,18.59682426]
[1732214256986,0.5,258.69,258.53,18.59682426]
[1732214256987,18.59682426,258.62,258.53,18.59682426]
[1732214257897,160.6,258.63,258.51,18.59682426]
[1732214257898,18.59682426,258.6,258.51,18.59682426]
[1732214258085,18.59682426,258.58,258.48,18.59682426]
[1732214258288,18.59682426,258.5,258.4,21.30572426]
[1732214258470,18.59682426,258.5,258.31,25.23772426]
[1732214258471,18.59682426,258.48,258.38,21.30592426]
[1732214258671,18.59682426,258.48,258.21,0.5]
[1732214258672,18.59682426,258.43,258.34,18.59682426]
[1732214258876,18.59682426,258.36,258.26,18.59682426]
[1732214259189,0.5,258.41,258.25,2.7105]
[1732214259190,18.59682426,258.34,258.25,2.7105]
[1732214259380,160.6,258.33,258.25,2.7105]
[1732214259705,18.59682426,258.32,258.22,21.30752426]
[1732214260002,18.59682426,258.32,258.22,18.59682426]
[1732214260688,18.59682426,258.32,258.24,18.59682426]
[1732214261083,18.59682426,258.3,258.2,18.59682426]
[1732214261380,160.6,258.29,258.2,18.59682426]
[1732214261798,160.6,258.29,258.21,2.7109]
[1732214262004,160.6,258.29,258.22,18.59682426]
[1732214262183,160.6,258.28,258.23,20.0]
[1732214262384,179.19682426,258.28,258.19,20.0]
[1732214262798,160.6,258.27,258.18,18.59682426]
[1732214263281,160.6,258.27,258.22,18.59682426]
[1732214263476,160.6,258.27,258.07,2.7124]
[1732214263477,160.6,258.27,258.24,18.59682426]
[1732214263999,142.00317574,258.26,258.09,1.0]
[1732214264207,142.00317574,258.25,258.24,38.59682426]
[1732214264386,18.59682426,258.33,258.25,20.0]
[1732214265290,18.59682426,258.33,258.24,18.59682426]
[1732214265602,18.59682426,258.31,258.23,20.0]
[1732214265815,18.59682426,258.29,258.12,3.0993]
[1732214266100,18.59682426,258.27,258.19,20.0]
[1732214266278,160.6,258.26,258.18,18.59682426]
[1732214266480,179.19682426,258.25,258.16,18.59682426]
[1732214266684,160.6,258.24,258.16,18.59682426]
[1732214266899,160.6,258.23,258.16,18.59682426]
[1732214267308,160.6,258.22,258.18,18.59682426]
[1732214267801,160.6,258.21,258.19,20.0]
[1732214268003,160.6,258.2,258.19,20.0]
[1732214268784,18.59682426,258.27,258.19,20.0]
[1732214269003,160.6,258.26,258.19,20.0]
[1732214269209,160.6,258.25,258.19,20.0]
[1732214269702,160.6,258.24,258.19,20.0]
[1732214269948,160.6,258.23,258.19,20.0]
[1732214270089,160.6,258.22,258.19,20.0]
[1732214270289,160.6,258.21,258.19,20.0]
[1732214270489,160.6,258.2,258.19,20.0]
[1732214270693,18.59682426,258.25,258.19,20.0]
[1732214270892,160.6,258.24,258.19,20.0]
[1732214271309,160.6,258.23,258.22,38.59682426]
[1732214272007,160.6,258.23,258.22,41.69492426]
[1732214272394,160.6,258.3,258.23,43.776884]
[1732214272593,160.6,258.36,258.31,43.776884]
[1732214272796,160.6,258.46,258.39,20.0]
[1732214272993,160.6,258.45,258.39,20.0]
[1732214273216,160.6,258.45,258.41,20.0]
[1732214273516,160.6,258.44,258.43,20.0]
[1732214273814,18.59682426,258.56,258.44,3.0954]
[1732214274016,160.6,258.55,258.49,20.0]
[1732214275105,18.59682426,258.54,258.45,20.0]
[1732214275299,18.59682426,258.52,258.45,20.0]
[1732214275614,18.59682426,258.5,258.43,20.0]
[1732214275802,160.6,258.49,258.43,3.0956]
[1732214276112,160.6,258.49,258.43,23.0956]
[1732214277433,160.6,258.48,258.47,18.59682426]
[1732214277594,160.6,258.48,258.47,62.37370826]
[1732214277794,160.6,258.48,258.47,67.64343973]
[1732214277998,160.6,258.48,258.47,70.73853973]
[1732214278196,160.6,258.65,258.48,43.776884]
[1732214278403,160.6,258.64,258.58,20.0]
[1732214278621,18.59682426,258.68,258.6,20.0]
[1732214278622,160.6,258.63,258.6,20.0]
[1732214278800,160.6,258.63,258.62,20.0]
[1732214278999,18.59682426,258.72,258.62,20.0]
[1732214279198,160.6,258.71,258.62,20.0]
[1732214279416,160.6,258.71,258.64,20.0]
[1732214279724,160.6,258.71,258.65,18.59682426]
[1732214280115,160.6,258.71,258.66,20.0]
[1732214280324,160.6,258.71,258.68,20.0]
[1732214280515,18.59682426,258.76,258.68,20.0]
[1732214280516,160.6,258.7,258.68,20.0]
[1732214280825,160.6,258.7,258.66,20.0]
[1732214281004,160.6,258.7,258.64,20.0]
[1732214281407,18.59682426,258.66,258.64,20.0]
[1732214281608,18.59682426,258.66,258.58,20.0]
[1732214281798,160.6,258.65,258.58,20.0]
[1732214282824,160.6,258.57,258.55,18.59682426]
[1732214283029,160.6,258.56,258.5,18.59682426]
[1732214283321,160.6,258.55,258.5,18.59682426]
[1732214283513,160.6,258.55,258.48,18.59682426]
[1732214283726,160.6,258.54,258.48,18.59682426]
[1732214284124,160.6,258.53,258.46,18.59682426]
[1732214284422,3.8672,258.58,258.44,6.02084258]
[1732214284423,160.6,258.52,258.44,24.61766684]
[1732214284725,160.6,258.52,258.46,18.59682426]
[1732214285428,160.6,258.52,258.47,3.0951]
[1732214286123,160.6,258.52,258.47,23.0951]
[1732214286829,160.6,258.52,258.5,18.59682426]
[1732214287013,160.6,258.52,258.51,20.0]
[1732214287211,18.59682426,258.64,258.51,20.0]
[1732214287517,160.6,258.63,258.55,20.0]
[1732214287720,160.6,258.62,258.55,20.0]
[1732214288026,179.19682426,258.62,258.55,20.0]
[1732214288226,160.6,258.61,258.55,20.0]
[1732214288428,15.2515,258.66,258.56,18.59682426]
[1732214288429,160.6,258.6,258.56,18.59682426]
[1732214288606,160.6,258.59,258.57,20.0]
[1732214288807,160.6,258.58,258.57,20.0]
[1732214289219,160.6,258.58,258.55,20.0]
[1732214290039,160.6,258.58,258.53,20.0]
[1732214290614,160.6,258.58,258.51,20.0]
[1732214290926,160.6,258.57,258.52,18.59682426]
[1732214291132,160.6,258.57,258.53,20.0]
[1732214292511,18.59682426,258.54,258.37,5.18871523]
[1732214292725,160.6,258.53,258.37,0.5]
[1732214292924,160.6,258.53,258.46,18.59682426]
[1732214293132,160.6,258.52,258.44,18.59682426]
[1732214293340,160.6,258.52,258.48,18.59682426]
[1732214294025,160.6,258.51,258.5,18.59682426]
[1732214294226,18.59682426,258.6,258.5,18.59682426]
[1732214294444,160.6,258.59,258.51,20.0]
[1732214294933,160.6,258.58,258.54,18.59682426]
[1732214295136,160.6,258.57,258.56,38.59682426]
[1732214295431,18.59682426,258.64,258.57,20.0]
[1732214295734,18.59682426,258.62,258.57,20.0]
[1732214295930,18.59682426,258.62,258.55,20.0]
[1732214296621,18.59682426,258.62,258.53,20.0]
[1732214297024,18.59682426,258.64,258.54,18.59682426]
[1732214297230,18.59682426,258.64,258.55,43.776884]
[1732214297733,18.59682426,258.64,258.55,20.0]
[1732214298640,18.59682426,258.6,258.51,43.776884]
[1732214299414,160.6,258.59,258.51,20.0]
[1732214299640,160.6,258.59,258.48,18.59682426]
[1732214299641,18.59682426,258.58,258.48,18.59682426]
[1732214300632,18.59682426,258.56,258.46,18.59682426]
[1732214300811,160.6,258.55,258.47,23.776884]
[1732214301013,160.6,258.54,258.44,18.59682426]
[1732214301227,160.6,258.53,258.44,18.59682426]
[1732214301832,160.6,258.52,258.48,18.59682426]
[1732214303422,160.6,258.51,258.5,38.59682426]
[1732214303625,18.59682426,258.6,258.51,20.0]
[1732214303841,160.6,258.59,258.51,20.0]
[1732214304734,18.59682426,258.58,258.51,20.0]
[1732214306846,18.59682426,258.58,258.48,18.59682426]
[1732214307154,18.59682426,258.58,258.49,20.0]
[1732214307469,17.91251814,258.66,258.51,38.59682426]
[1732214307470,160.6,258.57,258.51,38.59682426]
[1732214308744,160.6,258.57,258.51,20.0]
[1732214310136,160.6,258.57,258.5,20.0]
[1732214310440,160.6,258.56,258.55,62.37370826]
[1732214311542,160.6,258.56,258.55,38.59682426]
[1732214313847,18.59682426,258.64,258.56,20.0]
[1732214316430,160.6,258.63,258.61,20.0]
[1732214316635,160.6,258.62,258.61,20.0]
[1732214316940,160.6,258.62,258.58,20.0]
[1732214317143,160.6,258.62,258.61,38.59682426]
[1732214317756,19.09682426,258.83,258.61,38.59682426]
[1732214317757,160.6,258.74,258.68,0.5]
[1732214317958,160.6,258.85,258.75,43.776884]
[1732214318273,160.6,258.84,258.78,20.0]
[1732214318551,160.6,258.84,258.83,38.59682426]
[1732214318760,160.6,258.94,258.84,20.0]
[1732214318932,179.19682426,258.93,258.84,38.59682426]
[1732214319133,18.59682426,258.91,258.84,20.0]
[1732214319449,18.59682426,258.91,258.76,7.0185337]
[1732214319450,18.59682426,258.91,258.83,20.0]
[1732214319655,18.59682426,258.89,258.81,20.0]
[1732214319953,18.59682426,258.89,258.79,20.0]
[1732214320157,18.59682426,258.89,258.81,20.0]
[1732214320354,18.59682426,258.86,258.81,20.0]
[1732214320647,34.73782426,258.96,258.69,17.0286]
[1732214320648,160.6,258.85,258.8,20.0]
[1732214320853,160.6,258.84,258.82,20.0]
[1732214321056,160.6,258.84,258.7,30.38901358]
[1732214321057,160.6,258.84,258.83,38.59682426]
[1732214321431,18.59682426,258.95,258.84,20.0]
[1732214321758,160.6,258.94,258.86,18.59682426]
[1732214322054,160.6,258.94,258.87,20.0]
[1732214322250,18.59682426,258.93,258.87,20.0]
[1732214322453,160.6,258.94,258.89,20.0]
[1732214322643,160.6,258.93,258.88,18.59682426]
[1732214322840,160.6,258.93,258.89,20.0]
[1732214323041,160.6,258.92,258.89,20.0]
[1732214323241,160.6,258.91,258.89,20.0]
[1732214323654,160.6,258.9,258.89,20.0]
[1732214324835,160.6,258.87,258.8,18.59682426]
[1732214325041,160.6,258.86,258.8,18.59682426]
[1732214325434,160.6,258.86,258.78,18.59682426]
[1732214325636,160.6,258.86,258.68,6.1352]
[1732214325637,160.6,258.85,258.76,18.59682426]
[1732214325938,160.6,258.85,258.78,18.59682426]
[1732214326557,160.6,258.84,258.74,18.59682426]
[1732214326759,160.6,258.83,258.74,18.59682426]
[1732214326960,179.19682426,258.83,258.74,18.59682426]
[1732214327464,160.6,258.82,258.73,18.59682426]
[1732214327637,18.59682426,258.81,258.73,18.59682426]
[1732214327837,184.376884,258.8,258.71,18.59682426]
[1732214328036,160.6,258.8,258.73,18.59682426]
[1732214328245,160.6,258.79,258.75,18.59682426]
[1732214328450,160.6,258.79,258.73,18.59682426]
[1732214329460,160.6,258.79,258.6,5.17639095]
[1732214329461,23.776884,258.78,258.69,18.59682426]
[1732214329646,42.37370826,258.76,258.67,18.59682426]
[1732214331137,23.776884,258.76,258.67,18.59682426]
[1732214331559,42.37370826,258.76,258.67,18.59682426]
[1732214331944,18.59682426,258.74,258.63,18.59682426]
[1732214332141,160.6,258.73,258.63,18.59682426]
[1732214332544,160.6,258.73,258.57,18.59682426]
[1732214332545,2.013,258.29,258.16,61.77437136]
[1732214332748,2.013,258.29,257.62,18.59682426]
[1732214332749,0.5,257.84,257.62,18.59682426]
[1732214332949,18.59682426,257.79,257.62,18.59682426]
[1732214333146,18.59682426,257.79,257.53,24.89232426]
[1732214333147,52.80903195,257.78,257.75,18.59682426]
[1732214333359,52.80903195,257.78,257.56,0.5]
[1732214333360,99.610086,257.77,257.56,0.5]
[1732214333537,89.77535433,257.76,257.66,28.26824027]
[1732214333738,0.5,257.72,257.36,182.2539999]
[1732214334059,4.75727473,257.6,257.53,18.59682426]
[1732214334263,4.75727473,257.6,257.18,19.77017779]
[1732214334264,5.25727473,257.57,257.41,3.1078]
[1732214334462,0.5,257.54,257.44,18.59682426]
[1732214334640,0.5,257.52,257.01,64.21073131]
[1732214334835,0.5,257.5,257.43,30.53067801]
[1732214335058,4.71645858,257.48,257.4,30.53067801]
[1732214335259,23.19961975,257.47,257.4,30.53067801]
[1732214335444,36.96632236,257.46,257.27,30.53067801]
[1732214335641,142.5843863,257.45,257.27,9.90314671]
[1732214335840,29.19424154,257.44,257.27,9.90314671]
[1732214336062,4.71645858,257.62,257.21,9.1e-06]
[1732214336245,4.71645858,257.61,257.21,9.1e-06]
[1732214336444,19.85574226,257.81,257.61,20.0]
[1732214336656,19.82561004,257.8,257.69,4.13e-06]
[1732214336861,160.6,257.86,257.77,20.0]
[1732214337041,30.53067801,257.9,257.79,20.0]
[1732214337244,160.6,257.89,257.79,20.0]
[1732214337541,30.53067801,257.97,257.87,20.0]
[1732214337741,160.6,257.96,257.87,20.0]
[1732214337956,160.6,258.04,257.9,30.53067801]
[1732214338152,30.53067801,258.12,258.05,23.776884]
[1732214338359,30.53067801,258.1,258.06,20.0]
[1732214338568,30.53067801,258.08,258.06,20.0]
[1732214338762,0.88318011,258.09,258.08,20.0]
[1732214338967,160.6,258.3,258.12,20.0]
[1732214339156,30.53067801,258.21,258.17,23.776884]
[1732214339763,160.6,258.39,258.22,43.776884]
[1732214339983,5.07887584,258.44,258.38,20.0]
[1732214340268,5.07887584,258.44,258.4,20.0]
[1732214340464,5.07887584,258.44,258.41,6.45559887]
[1732214340675,5.07887584,258.44,258.43,50.53067801]
[1732214340849,160.6,258.61,258.44,20.0]
[1732214341056,160.6,258.61,258.55,30.53067801]
[1732214341270,30.53067801,258.62,258.56,20.0]
[1732214341458,160.6,258.64,258.56,20.0]
[1732214341650,137.33471422,258.64,258.58,23.776884]
[1732214341868,137.83471422,258.73,258.61,30.53067801]
[1732214342070,30.53067801,258.68,258.63,3.0932]
[1732214342261,30.53067801,258.64,258.63,3.0932]
[1732214342576,0.5,258.6,258.52,20.0]
[1732214342749,137.33471422,258.59,258.53,3.0944]
[1732214342951,1.0,258.56,258.52,20.0]
[1732214343150,137.91722534,258.58,257.93,2.16682199]
[1732214343151,0.5,258.54,258.48,20.0]
[1732214343353,31.11318913,258.57,258.47,30.53067801]
[1732214343354,0.5,258.52,258.47,3.095]
[1732214343567,0.5,258.39,258.32,3.0969]
[1732214343768,0.5,258.36,258.33,0.88480404]
[1732214343991,0.5,258.34,258.33,0.88480404]
[1732214344166,1.58251112,258.34,258.33,0.88480404]
[1732214344364,25.35939512,258.34,258.33,0.88480404]
[1732214344876,54.30756201,258.34,258.33,0.88480404]
[1732214345177,54.30756201,258.34,258.33,20.56208008]
[1732214345350,30.53067801,258.34,258.33,0.88480404]
[1732214345686,54.30756201,258.34,258.33,31.68673903]
[1732214345866,30.53067801,258.34,258.33,0.88480404]
[1732214346055,30.53067801,258.36,258.33,0.88480404]
[1732214346350,30.53067801,258.57,258.33,0.88480404]
[1732214346351,54.30756201,258.34,258.33,0.88480404]
[1732214346756,31.03067801,258.34,258.24,30.53067801]
[1732214347078,30.53067801,258.32,258.2,108.38503068]
[1732214347258,30.53067801,258.3,258.2,108.38503068]
[1732214347572,160.6,258.29,258.26,46.57415655]
[1732214347987,160.6,258.28,258.27,30.53067801]
[1732214348155,3.8701,258.39,258.28,20.0]
[1732214348472,191.63067801,258.38,258.27,30.53067801]
[1732214348652,191.63067801,258.38,258.28,20.0]
[1732214349356,160.6,258.38,258.3,20.0]
[1732214349682,15.46431,258.49,258.38,43.776884]
[1732214349861,160.6,258.48,258.43,31.03067801]
[1732214350362,160.6,258.48,258.43,30.53067801]
[1732214350571,160.6,258.47,258.46,43.776884]
[1732214350765,160.6,258.6,258.49,0.5]
[1732214350949,160.6,258.59,258.58,20.5]
[1732214351149,34.39637801,258.69,258.6,0.5]
[1732214351353,30.53067801,258.67,258.55,30.53067801]
[1732214351578,30.53067801,258.65,258.54,20.5]
[1732214351872,160.6,258.64,258.56,20.0]
[1732214352260,160.6,258.64,258.58,0.5]
[1732214352751,160.6,258.63,258.61,30.53067801]
[1732214352952,160.6,258.62,258.61,30.53067801]
[1732214353171,160.6,258.62,258.61,50.53067801]
[1732214353677,160.6,258.62,258.61,31.76208608]
[1732214354178,160.6,258.62,258.61,20.0]
[1732214354482,160.6,258.6,258.59,0.5]
[1732214354661,160.6,258.6,258.58,31.4638629]
[1732214354868,160.6,258.6,258.58,0.5]
[1732214355172,160.6,258.6,258.56,20.0]
[1732214355555,160.6,258.6,258.58,0.5]
[1732214355957,160.6,258.59,258.58,0.5]
[1732214356155,160.6,258.59,258.58,20.0]
[1732214356370,160.6,258.59,258.58,20.5]
[1732214356564,160.6,258.59,258.58,20.0]
[1732214356762,160.6,258.59,258.58,20.5]
[1732214357959,160.6,258.59,258.58,20.0]
[1732214358272,160.6,258.59,258.49,6.7699]
[1732214358273,160.6,258.58,258.51,30.53067801]
[1732214358460,160.6,258.57,258.49,30.53067801]
[1732214358655,160.6,258.56,258.49,30.53067801]
[1732214358883,161.1,258.55,258.45,30.53067801]
[1732214359066,30.53067801,258.52,258.41,30.53067801]
[1732214359464,30.53067801,258.52,258.33,7.2741]
[1732214359465,130.06932199,258.4,258.37,0.5]
[1732214359666,130.06932199,258.39,258.37,31.03067801]
[1732214360005,130.06932199,258.39,258.37,30.53067801]
[1732214360167,130.06932199,258.39,258.37,31.03067801]
[1732214360367,130.06932199,258.38,258.37,30.53067801]
[1732214360571,130.06932199,258.38,258.37,31.03067801]
[1732214360883,130.06932199,258.38,258.37,50.53067801]
[1732214361085,3.8692,258.45,258.38,20.0]
[1732214361685,34.39987801,258.45,258.38,20.0]
[1732214362186,34.39987801,258.45,258.33,37.30477801]
[1732214362686,160.6,258.44,258.34,0.5]